lending/lending_fUSD_20240410
["ID","MTS","AMOUNT","RATE_DAILY","PERIOD"]
[322075418,1712743853848,-500.0,0.00043794,30]
[322075419,1712743853857,-3000.0,0.000438,2]
[322075420,1712743853866,-4021.98655662,0.000438,2]
[322075421,1712743853875,-1000.0,0.00043835,2]
[322075422,1712743853885,-1215.79,0.00043836,2]
[322075423,1712743853894,-21576.0,0.00043836,2]
[322075424,1712743853904,-500.0,0.00043836,14]
[322075425,1712743853913,-1002.84,0.0004385,2]
[322075426,1712743853922,-2416.0,0.0004398,120]
[322075427,1712743853932,-1000.0,0.00043999,120]
[322075428,1712743853941,-150.0,0.00043999,120]
[322075429,1712743853951,-100000.0,0.00044,44]
[322075430,1712743853960,-5009.36810139,0.00044,2]
[322075431,1712743853969,-260.0,0.00044,14]
[322075432,1712743853978,-12625.0,0.00044,2]
[322075433,1712743853988,-60000.0,0.00044,4]
[322075434,1712743853997,-600.0,0.00044,45]
[322075435,1712743854007,-1463.09565674,0.00044,30]
[322075436,1712743854016,-850.0,0.00044,90]
[322075437,1712743854026,-2000.0,0.00044,10]
[322075438,1712743854035,-2110.0,0.00044,15]
[322075439,1712743854045,-1613.623007,0.00044,44]
[322075440,1712743854056,-777.838234,0.00044,14]
[322075441,1712743854068,-777.838234,0.00044,14]
[322075442,1712743854077,-151.0,0.00044,14]
[322075443,1712743854087,-151.0,0.00044,14]
[322075444,1712743854098,-151.0,0.00044,14]
[322075445,1712743854111,-150.0,0.000441,30]
[322075446,1712743854121,-150.0,0.000441,30]
[322075447,1712743854132,-150.49160149,0.000441,30]
[322075448,1712743854141,-150.0,0.000441,30]
[322075449,1712743854151,-150.11800077,0.000441,30]
[322075450,1712743854160,-150.0,0.000441,30]
[322075451,1712743854170,-150.0,0.000441,30]
[322075452,1712743854179,-150.0,0.000441,30]
[322075453,1712743854189,-150.0,0.000441,30]
[322075454,1712743854198,-150.0,0.000441,30]
[322075455,1712743854208,-292.36394443,0.000441,30]
[322075456,1712743854217,-150.09273692,0.000441,30]
[322075457,1712743854229,-150.0,0.00044124,2]
[322075458,1712743854241,-1030.0,0.00044132,30]
[322075459,1712743854251,-311.84,0.00044148,2]
[322075460,1712743854260,-1002.84,0.0004415,2]
[322075461,1712743854272,-150.0,0.00044211,30]
[322075462,1712743854282,-150.0,0.00044323,30]
[322075463,1712743854291,-500.0,0.00044342,30]
[322075464,1712743854302,-150.0,0.00044372,30]
[322075465,1712743854313,-150.0,0.00044434,30]
[322075466,1712743854326,-150.0,0.00044435,120]
[322075467,1712743854335,-150.0,0.00044477,30]
[322075468,1712743854346,-309.76,0.00044495,2]
[322075469,1712743854356,-256.71,0.000445,14]
[322075470,1712743854367,-2110.0,0.000445,15]
[322075471,1712743854379,-150.0,0.00044545,30]
[322075472,1712743854389,-155.4591,0.000446,30]
[322075473,1712743854400,-150.0,0.00044644,30]
[322075474,1712743854411,-150.0,0.00044657,30]
[322075475,1712743854421,-1002.84,0.0004466,2]
[322075476,1712743854431,-300.0,0.000447,19]
[322075477,1712743854441,-675.99,0.00044701,2]
[322075478,1712743854451,-900.0,0.00044701,2]
[322075479,1712743854461,-150.0,0.00044768,30]
[322075480,1712743854471,-155.4591,0.000448,30]
[322075481,1712743854481,-150.0,0.0004483,20]
[322075482,1712743854490,-150.0,0.00044854,30]
[322075483,1712743854500,-150.0,0.0004488,30]
[322075484,1712743854509,-500.0,0.0004489,30]
[322075485,1712743854519,-1034.85315783,0.000449,4]
[322075486,1712743854528,-1023.38990111,0.000449,120]
[322075487,1712743854538,-150.0,0.00044917,30]
[322075488,1712743854547,-1002.84,0.0004496,2]
[322075489,1712743854560,-5170.91605711,0.0004498,2]
[322075490,1712743854571,-5000.0,0.00044986,4]
[322075491,1712743854581,-150.0,0.00044989,2]
[322075492,1712743854590,-150.0,0.00044991,30]
[322075493,1712743854600,-1000.0,0.00044999,120]
[322075494,1712743854610,-100000.0,0.00045,45]
[322075495,1712743854620,-328.47719203,0.00045,4]
[322075496,1712743854629,-500.0,0.00045,2]
[322075497,1712743854639,-18670.78931955,0.00045,5]
[322075498,1712743854650,-60000.0,0.00045,5]
[322075499,1712743854660,-2271.92748307,0.00045,30]
[322075500,1712743854669,-998.63,0.00045,21]
[322075501,1712743854678,-600.0,0.00045,46]
[322075502,1712743854688,-846.12864277,0.00045,45]
[322075503,1712743854697,-186.09009339,0.00045,30]
[322075504,1712743854707,-2220.11311676,0.00045,14]
[322075505,1712743854716,-150.0,0.00045,85]
[322075506,1712743854728,-2965.35797814,0.00045,120]
[322075507,1712743854738,-376.0,0.00045,120]
[322075508,1712743854749,-250.0,0.00045,30]
[322075509,1712743854759,-3995.0,0.00045,120]
[322075510,1712743854769,-2300.0,0.00045,120]
[322075511,1712743854780,-500.0,0.00045,4]
[322075512,1712743854791,-500.0,0.00045,4]
[322075513,1712743854802,-1000.0,0.00045,120]
[322075514,1712743854814,-10117.0,0.00045,90]
[322075515,1712743854825,-481.88824048,0.00045,30]
[322075516,1712743854836,-2110.0,0.00045,15]
[322075517,1712743854847,-151.0,0.00045,7]
[322075518,1712743854857,-267.016356,0.00045,14]
[322075519,1712743854866,-151.0,0.00045,14]
[322075520,1712743854876,-196.191424,0.00045,14]
[322075521,1712743854887,-151.0,0.00045,14]
[322075522,1712743854897,-230.11272,0.00045,14]
[322075523,1712743854908,-151.0,0.00045,14]
[322075524,1712743854919,-297.894152,0.00045,14]
[322075525,1712743854930,-231.476882,0.00045,14]
[322075526,1712743854940,-300.0,0.00045,30]
[322075527,1712743854950,-151.0,0.00045,14]
[322075528,1712743854960,-188.280396,0.00045,14]
[322075529,1712743855137,-188.280396,0.00045,14]
[322075530,1712743855146,-296.786934,0.00045,14]
[322075531,1712743855156,-185.717172,0.00045,14]
[322075532,1712743855165,-268.610246,0.00045,14]
[322075533,1712743855176,-151.0,0.00045,14]
[322075534,1712743855185,-213.073193,0.00045,14]
[322075535,1712743855195,-213.073193,0.00045,14]
[322075536,1712743855205,-271.110924,0.00045,14]
[322075537,1712743855215,-271.110924,0.00045,14]
[322075538,1712743855225,-277.62511,0.00045,14]
[322075539,1712743855234,-322.988531,0.00045,14]
[322075540,1712743855247,-322.988531,0.00045,14]
[322075541,1712743855257,-264.327896,0.00045,14]
[322075542,1712743855267,-222.485718,0.00045,14]
[322075543,1712743855277,-151.0,0.00045,14]
[322075544,1712743855289,-294.843849,0.00045,14]
[322075545,1712743855299,-294.843849,0.00045,14]
[322075546,1712743855310,-151.0,0.00045,14]
[322075547,1712743855320,-151.0,0.00045,14]
[322075548,1712743855329,-211.0,0.0004501,30]
[322075549,1712743855340,-219.0,0.0004501,30]
[322075550,1712743855349,-218.0,0.0004501,30]
[322075551,1712743855361,-150.0,0.0004508,30]
[322075552,1712743855371,-150.0,0.00045102,30]
[322075553,1712743855380,-1816.0734,0.0004514,30]
[322075554,1712743855390,-150.0,0.00045189,30]
[322075555,1712743855399,-155.4591,0.000452,30]
[322075556,1712743855409,-1000.0,0.000452,2]
[322075557,1712743855419,-410.53407229,0.000452,2]
[322075558,1712743855428,-160.0,0.000452,2]
[322075559,1712743855438,-1000.0,0.00045205,2]
[322075560,1712743855448,-354.69,0.00045205,2]
[322075561,1712743855458,-150.0,0.00045214,30]
[322075562,1712743855468,-150.0,0.00045231,30]
[322075563,1712743855477,-150.0,0.00045325,30]
[322075564,1712743855487,-155.4591,0.000454,30]
[322075565,1712743855496,-150.0,0.00045436,30]
[322075566,1712743855505,-500.0,0.00045438,30]
[322075567,1712743855515,-150.0,0.00045461,30]
[322075568,1712743855524,-1002.84,0.0004547,2]
[322075569,1712743855533,-250.0,0.000455,30]
[322075570,1712743855543,-2110.0,0.000455,15]
[322075571,1712743855553,-151.0,0.000455,28]
[322075572,1712743855562,-150.0,0.000455,8]
[322075573,1712743855571,-150.0,0.00045523,120]
[322075574,1712743855580,-150.0,0.00045548,30]
[322075575,1712743855589,-150.0,0.00045589,10]
[322075576,1712743855599,-150.0,0.00045608,30]
[322075577,1712743855608,-150.0,0.00045659,30]
[322075578,1712743855618,-300.0,0.000457,20]
[322075579,1712743855627,-150.0,0.00045733,30]
[322075580,1712743855637,-150.0,0.00045757,120]
[322075581,1712743855646,-1002.84,0.0004577,2]
[322075582,1712743855655,-150.0,0.0004577,30]
[322075583,1712743855664,-153.57439294,0.00045795,7]
[322075584,1712743855674,-150.0,0.00045854,2]
[322075585,1712743855683,-150.0,0.00045882,30]
[322075586,1712743855694,-150.0,0.00045985,30]
[322075587,1712743855705,-500.0,0.00045986,30]
[322075588,1712743855715,-150.0,0.00045993,30]
[322075589,1712743855726,-1000.0,0.00045999,120]
[322075590,1712743855736,-100000.0,0.00046,46]
[322075591,1712743855746,-3200.0,0.00046,4]
[322075592,1712743855756,-10000.0,0.00046,2]
[322075593,1712743855765,-155.0757102,0.00046,3]
[322075594,1712743855776,-500.0,0.00046,2]
[322075595,1712743855785,-706.0,0.00046,4]
[322075596,1712743855794,-600.0,0.00046,47]
[322075597,1712743855804,-1000.0,0.00046,30]
[322075598,1712743855813,-750.0,0.00046,100]
[322075599,1712743855822,-150.0,0.00046,96]
[322075600,1712743855831,-2000.0,0.00046,2]
[322075601,1712743855840,-250.0,0.00046,30]
[322075602,1712743855849,-2000.0,0.00046,120]
[322075603,1712743855858,-2110.0,0.00046,15]
[322075604,1712743855867,-150.0,0.00046,8]
[322075605,1712743855876,-224.0,0.00046005,28]
[322075606,1712743855886,-150.0,0.00046006,30]
[322075607,1712743855895,-1277.5831066,0.0004602,120]
[322075608,1712743855905,-150.0,0.0004606,30]
[322075609,1712743855914,-400.020215,0.00046085,30]
[322075610,1712743855922,-400.020215,0.00046085,30]
[322075611,1712743855931,-150.0,0.00046105,30]
[322075612,1712743855940,-150.0,0.00046216,30]
[322075613,1712743855949,-363.54,0.00046247,15]
[322075614,1712743855958,-150.0,0.00046278,30]
[322075615,1712743855967,-1002.84,0.0004628,2]
[322075616,1712743855977,-554.118161,0.0004628,2]
[322075617,1712743855986,-211.0,0.000463,30]
[322075618,1712743855995,-219.0,0.000463,30]
[322075619,1712743856004,-218.0,0.000463,30]
[322075620,1712743856013,-150.0,0.00046327,30]
[322075621,1712743856022,-150.0,0.00046362,30]
[322075622,1712743856032,-150.0,0.00046392,120]
[322075623,1712743856041,-311.84,0.00046412,2]
[322075624,1712743856050,-150.0,0.00046439,30]
[322075625,1712743856060,-1030.0,0.00046455,30]
[322075626,1712743856069,-250.0,0.000465,30]
[322075627,1712743856078,-2000.0,0.000465,40]
[322075628,1712743856087,-2000.0,0.000465,40]
[322075629,1712743856096,-2110.0,0.000465,15]
[322075630,1712743856105,-150.0,0.000465,8]
[322075631,1712743856114,-150.0,0.00046508,120]
[322075632,1712743856123,-413.25049395,0.00046534,30]
[322075633,1712743856132,-150.0,0.0004655,30]
[322075634,1712743856141,-150.0,0.0004655,30]
[322075635,1712743856150,-220.95698096,0.00046575,30]
[322075636,1712743856159,-513.23935151,0.00046575,30]
[322075637,1712743856168,-500.0,0.00046575,40]
[322075638,1712743856177,-500.0,0.00046575,31]
[322075639,1712743856186,-500.0,0.00046575,40]
[322075640,1712743856196,-500.0,0.00046575,40]
[322075641,1712743856205,-1000.0,0.00046575,2]
[322075642,1712743856215,-1002.84,0.0004658,2]
[322075643,1712743856224,-2352.0,0.000466,2]
[322075644,1712743856234,-150.0,0.00046661,30]
[322075645,1712743856243,-300.0,0.000467,21]
[322075646,1712743856253,-3729.0,0.000467,115]
[322075647,1712743856262,-150.0,0.0004672,2]
[322075648,1712743856272,-150.0,0.00046738,30]
[322075649,1712743856281,-150.0,0.00046773,30]
[322075650,1712743856290,-15085.4168,0.0004678,10]
[322075651,1712743856299,-400.020215,0.00046783,30]
[322075652,1712743856309,-400.020215,0.00046783,30]
[322075653,1712743856318,-4214.830684,0.000468,30]
[322075654,1712743856329,-1264.449205,0.000468,30]
[322075655,1712743856337,-150.0,0.00046822,30]
[322075656,1712743856346,-150.0,0.00046846,120]
[322075657,1712743856356,-500.0,0.00046849,31]
[322075658,1712743856365,-150.0,0.00046884,30]
[322075659,1712743856374,-1033.44682942,0.000469,4]
[322075660,1712743856383,-543.49142,0.000469,10]
[322075661,1712743856392,-76225.6461132,0.0004698,120]
[322075662,1712743856401,-224.0,0.00046983,28]
[322075663,1712743856412,-150.0,0.00046995,30]
[322075664,1712743856421,-1000.0,0.00046999,120]
[322075665,1712743856431,-100000.0,0.00047,47]
[322075666,1712743856440,-26180.92750284,0.00047,30]
[322075667,1712743856449,-1309.17274837,0.00047,120]
[322075668,1712743856458,-600.0,0.00047,48]
[322075669,1712743856467,-374.1866028,0.00047,120]
[322075670,1712743856477,-2916.58511388,0.00047,14]
[322075671,1712743856486,-200.0,0.00047,108]
[322075672,1712743856495,-994.0,0.00047,120]
[322075673,1712743856504,-28171.64531631,0.00047,30]
[322075674,1712743856513,-250.0,0.00047,30]
[322075675,1712743856522,-2000.0,0.00047,40]
[322075676,1712743856531,-2000.0,0.00047,40]
[322075677,1712743856541,-1000.0,0.00047,120]
[322075678,1712743856556,-10000.0,0.00047,90]
[322075679,1712743856605,-2110.0,0.00047,15]
[322075680,1712743856615,-1238.48,0.00047,120]
[322075681,1712743856624,-7031.92934865,0.00047,7]
[322075682,1712743856635,-208.89,0.00047,120]
[322075683,1712743856646,-179.256,0.00047,120]
[322075684,1712743856655,-208.891,0.00047,120]
[322075685,1712743856665,-179.256,0.00047,120]
[322075686,1712743856676,-1899.288,0.00047,120]
[322075687,1712743856686,-1899.288,0.00047,120]
[322075688,1712743856695,-1899.288,0.00047,120]
[322075689,1712743856704,-1899.288,0.00047,120]
[322075690,1712743856713,-1899.288,0.00047,120]
[322075691,1712743856722,-150.0,0.00047,9]
[322075692,1712743856731,-172.0,0.00047,90]
[322075693,1712743856739,-150.0,0.0004704,30]
[322075694,1712743856748,-1002.84,0.0004709,2]
[322075695,1712743856757,-150.0,0.00047094,30]
[322075696,1712743856766,-2000.0,0.000471,40]
[322075697,1712743856775,-2000.0,0.000471,40]
[322075698,1712743856785,-150.0,0.00047107,30]
[322075699,1712743856795,-150.0,0.00047115,30]
[322075700,1712743856804,-500.0,0.00047123,31]
[322075701,1712743856813,-150.0,0.00047169,120]
[322075702,1712743856823,-150.0,0.00047218,30]
[322075703,1712743856832,-150.0,0.0004733,30]
[322075704,1712743856842,-150.0,0.00047367,30]
[322075705,1712743856851,-1002.84,0.0004739,2]
[322075706,1712743856861,-500.0,0.00047397,31]
[322075707,1712743856870,-782.8821643,0.000474,120]
[322075708,1712743856881,-300.0,0.000474,10]
[322075709,1712743856892,-150.0,0.00047441,30]
[322075710,1712743856902,-400.020215,0.00047481,30]
[322075711,1712743856913,-400.020215,0.00047481,30]
[322075712,1712743856923,-150.0,0.00047492,30]
[322075713,1712743856932,-250.0,0.000475,60]
[322075714,1712743856941,-2000.0,0.000475,40]
[322075715,1712743856951,-2000.0,0.000475,40]
[322075716,1712743856960,-257.789,0.000475,7]
[322075717,1712743856970,-2110.0,0.000475,15]
[322075718,1712743856979,-150.0,0.000475,9]
[322075719,1712743856990,-150.0,0.00047552,30]
[322075720,1712743857001,-150.0,0.00047585,2]
[322075721,1712743857010,-5138.65824368,0.000476,2]
[322075722,1712743857019,-2000.0,0.000476,40]
[322075723,1712743857029,-2000.0,0.000476,40]
[322075724,1712743857039,-211.0,0.000476,30]
[322075725,1712743857048,-219.0,0.000476,30]
[322075726,1712743857059,-218.0,0.000476,30]
[322075727,1712743857069,-150.0,0.00047639,30]
[322075728,1712743857078,-130725.57433741,0.0004765,2]
[322075729,1712743857087,-150.0,0.00047664,30]
[322075730,1712743857097,-500.0,0.00047671,31]
[322075731,1712743857106,-300.0,0.000477,23]
[322075732,1712743857117,-503.14105492,0.00047775,20]
[322075733,1712743857127,-150.0,0.00047775,30]
[322075734,1712743857142,-2000.0,0.000478,40]
[322075735,1712743857152,-2000.0,0.000478,40]
[322075736,1712743857163,-150.0,0.00047869,30]
[322075737,1712743857174,-496.43,0.0004787,90]
[322075738,1712743857183,-150.0,0.00047886,30]
[322075739,1712743857192,-1045.8518,0.00047888,30]
[322075740,1712743857201,-300.0,0.000479,11]
[322075741,1712743857210,-1673.947736,0.000479,2]
[322075742,1712743857219,-150.0,0.00047911,30]
[322075743,1712743857230,-500.0,0.00047945,31]
[322075744,1712743857241,-1000.0,0.00047945,2]
[322075745,1712743857251,-224.0,0.00047962,28]
[322075746,1712743857260,-15000.0,0.0004798,12]
[322075747,1712743857271,-150.0,0.00047998,30]
[322075748,1712743857282,-1000.0,0.00047999,120]
[322075749,1712743857291,-100000.0,0.00048,48]
[322075750,1712743857300,-500.0,0.00048,2]
[322075751,1712743857311,-264.71111111,0.00048,120]
[322075752,1712743857320,-2000.0,0.00048,120]
[322075753,1712743857329,-983.5,0.00048,25]
[322075754,1712743857339,-600.0,0.00048,49]
[322075755,1712743857348,-650.0,0.00048,110]
[322075756,1712743857357,-2000.0,0.00048,60]
[322075757,1712743857366,-10000.0,0.00048,120]
[322075758,1712743857375,-1202.5587133,0.00048,7]
[322075759,1712743857385,-500.0,0.00048,30]
[322075760,1712743857394,-500.0,0.00048,30]
[322075761,1712743857404,-500.0,0.00048,30]
[322075762,1712743857414,-500.0,0.00048,30]
[322075763,1712743857423,-500.0,0.00048,30]
[322075764,1712743857474,-500.0,0.00048,30]
[322075765,1712743857483,-500.0,0.00048,30]
[322075766,1712743857492,-500.0,0.00048,30]
[322075767,1712743857502,-500.0,0.00048,30]
[322075768,1712743857511,-500.0,0.00048,30]
[322075769,1712743857520,-500.0,0.00048,30]
[322075770,1712743857529,-500.0,0.00048,30]
[322075771,1712743857538,-500.0,0.00048,30]
[322075772,1712743857547,-500.0,0.00048,30]
[322075773,1712743857557,-500.0,0.00048,30]
[322075774,1712743857566,-500.0,0.00048,30]
[322075775,1712743857575,-500.0,0.00048,30]
[322075776,1712743857584,-500.0,0.00048,30]
[322075777,1712743857593,-500.0,0.00048,30]
[322075778,1712743857602,-500.0,0.00048,30]
[322075779,1712743857611,-651.63,0.00048,30]
[322075780,1712743857620,-581.09,0.00048,30]
[322075781,1712743857629,-171.92919931,0.00048,120]
[322075782,1712743857638,-2660.0,0.00048,10]
[322075783,1712743857647,-250.0,0.00048,60]
[322075784,1712743857656,-10000.0,0.00048,120]
[322075785,1712743857667,-2000.0,0.00048,40]
[322075786,1712743857676,-10000.0,0.00048,120]
[322075787,1712743857686,-10000.0,0.00048,120]
[322075788,1712743857695,-10000.0,0.00048,120]
[322075789,1712743857704,-7881.65,0.00048,21]
[322075790,1712743857713,-6177.47411,0.00048,10]
[322075791,1712743857722,-4214.830684,0.00048,30]
[322075792,1712743857731,-1264.449205,0.00048,30]
[322075793,1712743857741,-98519.77940753,0.00048,120]
[322075794,1712743857750,-50839.25,0.00048,30]
[322075795,1712743857759,-41159.28,0.00048,30]
[322075796,1712743857768,-1002.88674229,0.00048,120]
[322075797,1712743857777,-678.0,0.00048,120]
[322075798,1712743857786,-502.0,0.00048,2]
[322075799,1712743857795,-30100.0,0.00048,3]
[322075800,1712743857803,-104678.98,0.00048,30]
[322075801,1712743857814,-10000.0,0.00048,120]
[322075802,1712743857823,-151.43,0.00048,120]
[322075803,1712743857832,-2110.0,0.00048,15]
[322075804,1712743857841,-150.0,0.00048,9]
[322075805,1712743857850,-150.0,0.0004802,30]
[322075806,1712743857858,-2000.0,0.000481,40]
[322075807,1712743857867,-150.0,0.00048109,30]
[322075808,1712743857876,-400.020215,0.00048179,30]
[322075809,1712743857885,-400.020215,0.00048179,30]
[322075810,1712743857894,-150.0,0.00048183,30]
[322075811,1712743857903,-312.22646663,0.000482,40]
[322075812,1712743857913,-1002.84,0.000482,2]
[322075813,1712743857922,-500.0,0.00048219,31]
[322075814,1712743857931,-150.0,0.0004822,30]
[322075815,1712743857940,-150.0,0.00048246,30]
[322075816,1712743857949,-3194.35180156,0.0004831,7]
[322075817,1712743857958,-239.91506078,0.00048316,40]
[322075818,1712743857967,-388.02255409,0.00048316,40]
[322075819,1712743857976,-1157.78655583,0.00048316,35]
[322075820,1712743857985,-386.16489484,0.00048316,35]
[322075821,1712743857993,-150.0,0.00048332,30]
[322075822,1712743858003,-150.0,0.0004837,120]
[322075823,1712743858012,-1000.0,0.000484,30]
[322075824,1712743858021,-25964.44767443,0.000484,120]
[322075825,1712743858031,-300.0,0.000484,11]
[322075826,1712743858040,-150.0,0.00048423,120]
[322075827,1712743858050,-15000.0,0.0004844,16]
[322075828,1712743858059,-150.0,0.00048443,30]
[322075829,1712743858069,-150.0,0.0004845,2]
[322075830,1712743858078,-150.0,0.00048456,30]
[322075831,1712743858087,-661.66943882,0.0004846,7]
[322075832,1712743858096,-15285.39790832,0.00048475,2]
[322075833,1712743858105,-429.11826896,0.00048493,31]
[322075834,1712743858114,-1000.0,0.00048499,120]
[322075835,1712743858123,-2000.0,0.000485,120]
[322075836,1712743858132,-2100.0,0.000485,30]
[322075837,1712743858141,-2019.58,0.000485,120]
[322075838,1712743858151,-1000.0,0.000485,120]
[322075839,1712743858160,-250.0,0.000485,60]
[322075840,1712743858169,-199.63908445,0.000485,120]
[322075841,1712743858178,-2110.0,0.000485,15]
[322075842,1712743858188,-150.0,0.000485,9]
[322075843,1712743858197,-150.0,0.00048555,30]
[322075844,1712743858206,-5000.0,0.000486,30]
[322075845,1712743858215,-30000.0,0.000486,120]
[322075846,1712743858225,-264.71111111,0.00048603,120]
[322075847,1712743858234,-150.0,0.00048623,30]
[322075848,1712743858248,-2000.0,0.00048656,5]
[322075849,1712743858257,-2000.0,0.00048656,5]
[322075850,1712743858266,-90000.0,0.0004866,120]
[322075851,1712743858276,-1856.03684673,0.0004866,2]
[322075852,1712743858286,-1856.03684673,0.0004866,2]
[322075853,1712743858296,-1856.03684673,0.0004866,2]
[322075854,1712743858305,-1856.03684673,0.0004866,2]
[322075855,1712743858316,-1856.03684673,0.0004866,2]
[322075856,1712743858325,-1856.03684673,0.0004866,2]
[322075857,1712743858335,-1856.03684673,0.0004866,2]
[322075858,1712743858345,-1856.03684673,0.0004866,2]
[322075859,1712743858354,-1856.03684673,0.0004866,2]
[322075860,1712743858363,-1856.03684673,0.0004866,2]
[322075861,1712743858372,-1856.03684673,0.0004866,2]
[322075862,1712743858382,-1856.03684673,0.0004866,2]
[322075863,1712743858391,-1856.03684673,0.0004866,2]
[322075864,1712743858403,-1856.03684673,0.0004866,2]
[322075865,1712743858415,-1856.03684673,0.0004866,2]
[322075866,1712743858425,-1856.03684673,0.0004866,2]
[322075867,1712743858433,-1856.03684673,0.0004866,2]
[322075868,1712743858443,-1856.03684673,0.0004866,2]
[322075869,1712743858452,-1856.03684673,0.0004866,2]
[322075870,1712743858461,-1856.53,0.0004866,2]
[322075871,1712743858470,-765.28953932,0.0004866,2]
[322075872,1712743858479,-765.28953932,0.0004866,2]
[322075873,1712743858489,-765.28953932,0.0004866,2]
[322075874,1712743858498,-765.28953932,0.0004866,2]
[322075875,1712743858507,-765.28953932,0.0004866,2]
[322075876,1712743858516,-765.28953932,0.0004866,2]
[322075877,1712743858526,-765.28953932,0.0004866,2]
[322075878,1712743858535,-765.28953932,0.0004866,2]
[322075879,1712743858545,-765.28953932,0.0004866,2]
[322075880,1712743858554,-765.28953932,0.0004866,2]
[322075881,1712743858565,-765.28953932,0.0004866,2]
[322075882,1712743858575,-765.28953932,0.0004866,2]
[322075883,1712743858584,-765.28953932,0.0004866,2]
[322075884,1712743858593,-765.28953932,0.0004866,2]
[322075885,1712743858602,-765.28953932,0.0004866,2]
[322075886,1712743858611,-765.28953932,0.0004866,2]
[322075887,1712743858620,-765.28953932,0.0004866,2]
[322075888,1712743858630,-765.28953932,0.0004866,2]
[322075889,1712743858639,-765.28953932,0.0004866,2]
[322075890,1712743858648,-765.78,0.0004866,2]
[322075891,1712743858658,-156.12145588,0.0004866,2]
[322075892,1712743858667,-156.12145588,0.0004866,2]
[322075893,1712743858676,-156.12145588,0.0004866,2]
[322075894,1712743858685,-156.12145588,0.0004866,2]
[322075895,1712743858694,-156.12145588,0.0004866,2]
[322075896,1712743858703,-156.12145588,0.0004866,2]
[322075897,1712743858713,-156.12145588,0.0004866,2]
[322075898,1712743858722,-156.12145588,0.0004866,2]
[322075899,1712743858731,-156.12145588,0.0004866,2]
[322075900,1712743858740,-156.12145588,0.0004866,2]
[322075901,1712743858748,-156.12145588,0.0004866,2]
[322075902,1712743858758,-156.12145588,0.0004866,2]
[322075903,1712743858767,-156.12145588,0.0004866,2]
[322075904,1712743858777,-156.12145588,0.0004866,2]
[322075905,1712743858786,-156.12145588,0.0004866,2]
[322075906,1712743858795,-156.12145588,0.0004866,2]
[322075907,1712743858804,-156.12145588,0.0004866,2]
[322075908,1712743858816,-156.62,0.0004866,2]
[322075909,1712743858825,-490.03437695,0.0004866,2]
[322075910,1712743858834,-490.03437695,0.0004866,2]
[322075911,1712743858843,-490.03437695,0.0004866,2]
[322075912,1712743858852,-490.03437695,0.0004866,2]
[322075913,1712743858861,-490.03437695,0.0004866,2]
[322075914,1712743858870,-490.03437695,0.0004866,2]
[322075915,1712743858880,-490.03437695,0.0004866,2]
[322075916,1712743858889,-490.03437695,0.0004866,2]
[322075917,1712743858899,-490.03437695,0.0004866,2]